fUSD/lending_fUSD_20251110
["ID","MTS","AMOUNT","RATE_DAILY","PERIOD"]
[393527573,1762767041897,-151.0,0.0003387,31]
[393527574,1762767041908,-212.926019,0.0003387,31]
[393527575,1762767041921,-212.926019,0.0003387,31]
[393527576,1762767041930,-212.926019,0.0003387,31]
[393527577,1762767041939,-212.926019,0.0003387,31]
[393527578,1762767041950,-297.891577,0.0003387,31]
[393527579,1762767041960,-152.966377,0.0003387,31]
[393527580,1762767041969,-114006.217603,0.0003387,3]
[393527581,1762767041979,-163.41,0.0003387,2]
[393527582,1762767041989,-405.21702018,0.00033873,5]
[393527583,1762767041999,-503.9186654,0.00033873,5]
[393527584,1762767042009,-648.54829643,0.00033873,5]
[393527585,1762767042018,-503.70744031,0.00033873,5]
[393527586,1762767042027,-500.0,0.00033873,5]
[393527587,1762767042037,-200.0,0.00033873,5]
[393527588,1762767042047,-500.0,0.00033873,5]
[393527589,1762767042057,-151.0,0.00033877,14]
[393527590,1762767042066,-548.59,0.00033879,14]
[393527591,1762767042075,-154.750404,0.0003388,31]
[393527592,1762767042084,-151.0,0.0003388,31]
[393527593,1762767042094,-240.504,0.0003388,31]
[393527594,1762767042103,-240.504,0.0003388,31]
[393527595,1762767042112,-240.504,0.0003388,31]
[393527596,1762767042121,-240.504,0.0003388,31]
[393527597,1762767042131,-151.0,0.0003388,31]
[393527598,1762767042140,-212.926019,0.0003388,31]
[393527599,1762767042149,-212.926019,0.0003388,31]
[393527600,1762767042158,-212.926019,0.0003388,31]
[393527601,1762767042168,-212.926019,0.0003388,31]
[393527602,1762767042177,-292826.07190183,0.0003388,2]
[393527605,1762767043529,-151.0,0.0003387,30]
[393527606,1762767043539,-151.0,0.0003387,30]
[393527607,1762767043550,-151.0,0.0003388,30]
[393527608,1762767043560,-151.0,0.0003388,30]
[393527609,1762767043569,-7752.48091696,0.0003388,2]
[393527613,1762767043772,-52.58856602,0.0003388,2]
[393527615,1762767043788,-4550.725,0.0003388,2]
[393527672,1762767046414,-151.0,0.0003387,31]
[393527673,1762767046425,-151.0,0.0003387,30]
[393527674,1762767046434,-151.0,0.0003387,31]
[393527675,1762767046444,-151.0,0.0003387,30]
[393527676,1762767046453,-151.0,0.0003388,31]
[393527677,1762767046463,-60.05810527,0.0003388,30]
[393527678,1762767046522,-90.94189473,0.0003388,30]
[393527679,1762767046532,-151.0,0.0003388,31]
[393527680,1762767046542,-151.0,0.0003388,30]
[393527681,1762767046553,-305.52541959,0.0003388,2]
[393527682,1762767046565,-577.84831866,0.0003388,2]
[393527683,1762767046576,-3423.89461347,0.0003388,2]
[393527684,1762767046738,-982.23833348,0.0003388,2]
[393527689,1762767861086,209.06,0.00013699,2]
[393527691,1762767885807,-209.06,0.00020187,2]
[393527692,1762767885829,-65.78241831,0.00023866,2]
[393527693,1762767891055,-184.81800392,0.00023866,2]
[393527694,1762767924421,-159.25,0.00022923,2]
[393527695,1762767924447,-35.75,0.00023866,2]
[393527696,1762768164132,-21.24889053,0.00023866,2]
[393527697,1762768164155,-141.47994845,0.000249,2]
[393527716,1762768231522,-22.98495949,0.000249,2]
[393527718,1762768231531,-182.80940069,0.000249,2]
[393527719,1762768231541,-305.91810296,0.00025,2]
[393527720,1762768231553,-700.39189704,0.00025,2]
[393527721,1762768231563,-151.0,0.00025256,2]
[393527722,1762768231573,-151.0,0.00025313,2]
[393527723,1762768231583,-151.0,0.00025346,2]
[393527724,1762768231592,-1006.31,0.000255,2]
[393527725,1762768231602,-300.0,0.00026252,2]
[393527726,1762768231612,-195.0,0.00026253,2]
[393527727,1762768231622,-195.0,0.00026253,2]
[393527728,1762768231635,-195.0,0.00026253,2]
[393527729,1762768231644,-250.0,0.00026253,2]
[393527730,1762768231654,-251.20800392,0.00026253,2]
[393527731,1762768231664,-209.06,0.00026676,2]
[393527732,1762768231674,-250.0,0.0002739,2]
[393527733,1762768231684,-500.0,0.00027945,2]
[393527734,1762768231695,-1221.19,0.0002812,2]
[393527735,1762768231705,-420.0,0.00028403,2]
[393527736,1762768231714,-1061.0,0.000287,5]
[393527737,1762768231724,-1200.0,0.00029199,2]
[393527738,1762768231734,-483.01293654,0.0003,2]
[393527739,1762768231745,-153.0,0.00030272,2]
[393527740,1762768231754,-153.0,0.00030272,2]
[393527741,1762768231764,-153.0,0.00030272,2]
[393527742,1762768231774,-153.0,0.00030291,2]
[393527743,1762768231783,-153.0,0.00030291,2]
[393527744,1762768231793,-153.0,0.00030291,2]
[393527745,1762768231803,-153.0,0.00030291,2]
[393527746,1762768231813,-153.0,0.00030291,2]
[393527747,1762768231822,-153.0,0.00030291,2]
[393527748,1762768231832,-153.0,0.00030291,2]
[393527749,1762768231842,-153.0,0.00030293,2]
[393527750,1762768231852,-102.3507929,0.00030293,2]
[393527751,1762768231872,-50.6492071,0.00030293,2]
[393527752,1762768231882,-153.0,0.00030293,2]
[393527753,1762768231893,-151.0,0.00030296,2]
[393527755,1762768231903,-151.0,0.00030296,2]
[393527756,1762768231912,-151.0,0.00030296,2]
[393527758,1762768231922,-151.0,0.00030296,2]
[393527761,1762768231931,-151.0,0.00030296,2]
[393527762,1762768231942,-151.0,0.00030296,2]
[393527764,1762768231952,-153.0,0.00030311,2]
[393527766,1762768231961,-153.0,0.00030311,2]
[393527768,1762768231971,-153.0,0.00030311,2]
[393527770,1762768231980,-153.0,0.00030311,2]
[393527772,1762768231990,-153.0,0.00030311,2]
[393527775,1762768231999,-153.0,0.00030311,2]
[393527777,1762768232008,-153.0,0.00030311,2]
[393527779,1762768232018,-153.0,0.00030311,2]
[393527780,1762768232027,-153.0,0.00030314,2]
[393527783,1762768232036,-153.0,0.00030314,2]
[393527785,1762768232046,-153.0,0.00030314,2]
[393527787,1762768232055,-153.0,0.00030314,2]
[393527788,1762768232064,-153.0,0.00030314,2]
[393527790,1762768232075,-153.0,0.00030314,2]
[393527791,1762768232084,-405.21702018,0.00030375,5]
[393527792,1762768232093,-183.832735,0.000304,5]
[393527794,1762768232104,-2.39942565,0.000304,5]
[393527796,1762768232113,-500.0,0.000304,5]
[393527798,1762768232122,-183.19,0.00030465,120]
[393527800,1762768232135,-152.0,0.00030521,3]
[393527801,1762768232145,-355.6,0.00030942,3]
[393527802,1762768232155,-150.0,0.00031439,2]
[393527803,1762768232164,-751.99,0.00031469,2]
[393527804,1762768232173,-920.0,0.00031496,3]
[393527805,1762768232182,-200.0,0.00031712,2]
[393527806,1762768232192,-500.0,0.0003225,120]
[393527807,1762768232202,-504.45,0.00032871,2]
[393527808,1762768232211,-347.0,0.0003292,2]
[393527809,1762768232221,-153.7808323,0.00033,120]
[393527810,1762768232231,-721.889,0.00033,34]
[393527811,1762768232240,-168.0,0.00033042,2]
[393527812,1762768232250,-209.06,0.00033165,2]
[393527813,1762768232260,-893.79653186,0.0003318,2]
[393527814,1762768232270,-208.27826167,0.00033284,2]
[393527815,1762768232279,-893.79653187,0.00033469,2]
[393527816,1762768232292,-168.0,0.00033514,2]
[393527817,1762768232302,-1308.59029,0.0003354,2]
[393527818,1762768232321,-208.27826168,0.00033632,2]
[393527819,1762768232336,-2500.0,0.00033679,2]
[393527820,1762768232349,-191.92276152,0.0003368,15]
[393527821,1762768232360,-12697.07984417,0.0003368,2]
[393527822,1762768232371,-198.34707519,0.00033768,7]
[393527823,1762768232382,-500.0,0.00033768,7]
[393527824,1762768232394,-160.23379347,0.00033768,7]
[393527825,1762768232405,-373.88204719,0.00033768,7]
[393527826,1762768232417,-121192.575047,0.00033769,3]
[393527827,1762768232428,-10727.59651666,0.0003377,3]
[393527828,1762768232444,-6585.62849004,0.0003377,3]
[393527829,1762768232460,-500.0,0.00033778,120]
[393527830,1762768232472,-500.0,0.00033778,120]
[393527831,1762768232484,-500.0,0.00033778,7]
[393527832,1762768232497,-502.08330674,0.00033778,30]
[393527833,1762768232508,-515.69178766,0.00033778,120]
[393527834,1762768232519,-9117.03481898,0.00033779,2]
[393527835,1762768232532,-33661.31400213,0.00033779,2]
[393527836,1762768232546,-69717.39932189,0.00033779,2]
[393527837,1762768232558,-642.90252611,0.00033779,2]
[393527838,1762768232570,-265912.40307961,0.00033779,2]
[393527844,1762768237373,-500.0,0.00032998,7]
[393527846,1762768237387,-500.0,0.00032998,7]
[393527847,1762768237403,-500.0,0.00032998,7]
[393527848,1762768237416,-500.0,0.00032998,7]
[393527849,1762768237428,-500.0,0.00032998,7]
[393527850,1762768237441,-129.58024832,0.00032998,7]
[393527851,1762768237539,-363.34834054,0.00032998,7]
[393527852,1762768237552,-500.0,0.00032998,7]
[393527853,1762768237565,-500.0,0.00032998,7]
[393527854,1762768237575,-500.0,0.00032998,7]
[393527855,1762768237585,-177.4,0.00033759,3]
[393527856,1762768237595,-600.48442501,0.00033779,2]
[393527857,1762768237608,-2156.88,0.00033779,2]
[393527858,1762768237624,-9898.96667457,0.00033779,2]
[393527859,1762768237637,-1613.49719415,0.00033779,2]
[393527860,1762768237651,-2256.70555665,0.00033779,2]
[393527861,1762768237664,-448.40467669,0.00033779,2]
[393527862,1762768237677,-1117.23653689,0.00033779,2]
[393527863,1762768237703,-2172.03899966,0.00033779,2]
[393527877,1762768239499,-512.0988622,0.00033617,7]
[393527878,1762768239511,-403.5869083,0.00033617,7]
[393527879,1762768239581,-96.4130917,0.00033617,7]
[393527880,1762768239592,-499.35690837,0.0003367,2]
[393527881,1762768239605,-444.0843771,0.0003367,2]
[393527882,1762768239640,-6249.08982371,0.0003367,2]
[393527883,1762768239651,-20684.73218766,0.00033779,2]
[393527884,1762768239663,-4071.3943,0.0003378,2]
[393527885,1762768239675,-1000.0,0.0003378,2]
[393527886,1762768239687,-1046.7168,0.0003378,2]
[393527887,1762768239699,-8835.085,0.0003378,2]
[393527888,1762768239710,-1000.0,0.0003378,2]
[393527889,1762768239722,-150.0,0.00033808,2]
[393527890,1762768239734,-150.0,0.00033808,2]
[393527891,1762768239745,-12697.07984408,0.00033816,2]
[393527892,1762768239756,-10911.6258297,0.00033857,2]
[393527893,1762768239767,-151.0,0.00033858,14]
[393527894,1762768239778,-17313.2250067,0.00033859,3]
[393527895,1762768239789,-974.12236693,0.00033859,3]
[393527896,1762768239800,-17313.2250067,0.0003386,3]
[393527897,1762768239810,-974.12236693,0.0003386,3]
[393527898,1762768239821,-34626.4500134,0.0003386,3]
[393527899,1762768239832,-2922.36710079,0.0003386,3]
[393527900,1762768239843,-151.0,0.00033861,31]
[393527901,1762768239854,-240.504,0.00033861,31]
[393527902,1762768239864,-240.504,0.00033861,31]
[393527903,1762768239875,-240.504,0.00033861,31]
[393527904,1762768239886,-240.504,0.00033861,31]
[393527905,1762768239897,-151.0,0.00033861,31]
[393527906,1762768239908,-379.274472,0.00033861,31]
[393527907,1762768239918,-379.274472,0.00033861,31]
[393527909,1762768239929,-151.0,0.00033861,31]
[393527911,1762768239939,-379.274472,0.00033861,31]
[393527913,1762768239949,-379.274472,0.00033861,31]
[393527915,1762768239959,-151.0,0.00033861,31]
[393527917,1762768239970,-151.0,0.00033861,31]
[393527919,1762768239980,-151.0,0.00033861,31]
[393527921,1762768239991,-184.271672,0.00033861,31]
[393527923,1762768240001,-297.891577,0.00033861,31]
[393527925,1762768240012,-151.0,0.00033861,31]
[393527928,1762768240023,-17313.2250067,0.00033863,3]
[393527929,1762768240033,-974.12236693,0.00033867,3]
[393527930,1762768240043,-34626.4500134,0.00033869,3]
[393527931,1762768240053,-1948.24473386,0.00033869,3]
[393527932,1762768240063,-500.0,0.0003387,7]
[393527933,1762768240073,-500.0,0.0003387,120]
[393527934,1762768240084,-151.0,0.0003387,31]
[393527935,1762768240095,-151.0,0.0003387,31]
[393527936,1762768240106,-152.966377,0.0003387,31]
[393527937,1762768240116,-151.0,0.0003387,31]
[393527938,1762768240127,-151.0,0.0003387,31]
[393527939,1762768240137,-151.0,0.0003387,31]
[393527940,1762768240147,-151.0,0.0003387,31]
[393527941,1762768240158,-280.92235,0.0003387,31]
[393527942,1762768240168,-151.0,0.0003387,31]
[393527943,1762768240178,-284.056352,0.0003387,31]
[393527944,1762768240188,-151.0,0.0003387,31]
[393527945,1762768240200,-151.0,0.0003387,31]
[393527946,1762768240211,-151.0,0.0003387,31]
[393527947,1762768240220,-151.0,0.0003387,31]
[393527948,1762768240230,-151.0,0.0003387,31]
[393527949,1762768240240,-151.0,0.0003387,31]
[393527950,1762768240251,-151.0,0.0003387,15]
[393527951,1762768240262,-151.0,0.0003387,31]
[393527952,1762768240272,-151.0,0.0003387,31]
[393527953,1762768240282,-151.0,0.0003387,30]
[393527954,1762768240295,-151.0,0.0003387,30]
[393527955,1762768240305,-151.0,0.0003387,31]
[393527956,1762768240315,-151.0,0.0003387,31]
[393527957,1762768240635,-151.0,0.0003387,31]
[393527958,1762768240653,-226.008075,0.0003387,31]
[393527959,1762768240663,-240.504,0.0003387,31]
[393527960,1762768240672,-240.504,0.0003387,31]
[393527961,1762768240682,-240.504,0.0003387,31]
[393527962,1762768240692,-240.504,0.0003387,31]
[393527963,1762768240702,-151.0,0.0003387,31]
[393527964,1762768240712,-379.274472,0.0003387,31]
[393527965,1762768240723,-379.274472,0.0003387,31]
[393527966,1762768240732,-379.274472,0.0003387,31]
[393527967,1762768240742,-379.274472,0.0003387,31]
[393527968,1762768240751,-190.587736,0.0003387,31]
[393527969,1762768240761,-151.0,0.0003387,31]
[393527970,1762768240771,-151.0,0.0003387,31]
[393527971,1762768240781,-151.0,0.0003387,31]
[393527972,1762768240791,-69252.9000269,0.0003387,3]
[393527973,1762768240800,-3896.48946772,0.0003387,3]
[393527974,1762768240810,-500.0,0.00033873,5]
[393527975,1762768240819,-499.34352506,0.00033873,5]
[393527976,1762768240829,-500.0,0.00033873,5]
[393527977,1762768240839,-500.0,0.00033873,5]
[393527978,1762768240849,-500.0,0.00033873,5]
[393527979,1762768240858,-500.0,0.00033873,5]
[393527980,1762768240867,-500.0,0.00033873,5]
[393527981,1762768240877,-500.0,0.00033873,5]
[393527982,1762768240886,-500.0,0.00033873,5]
[393527983,1762768240896,-500.0,0.00033873,5]
[393527984,1762768240905,-500.0,0.00033873,5]
[393527985,1762768240915,-607.69627016,0.00033873,5]
[393527986,1762768240924,-503.70744031,0.00033873,5]
[393527987,1762768240933,-500.0,0.00033873,5]
[393527988,1762768240944,-200.0,0.00033873,5]
[393527989,1762768240954,-648.54829643,0.00033873,5]
[393527990,1762768240963,-500.0,0.00033873,5]
[393527991,1762768240973,-503.9186654,0.00033873,5]
[393527992,1762768240982,-151.0,0.00033873,31]
[393527993,1762768240992,-151.0,0.00033873,31]
[393527994,1762768241002,-151.0,0.00033873,31]
[393527995,1762768241012,-151.0,0.00033873,31]
[393527996,1762768241021,-196.931818,0.00033873,31]
[393527997,1762768241031,-151.0,0.00033873,31]
[393527998,1762768241047,-151.0,0.00033873,31]
[393527999,1762768241056,-151.0,0.00033873,30]
[393528000,1762768241067,-151.0,0.00033873,30]
[393528001,1762768241079,-151.0,0.00033873,31]
[393528002,1762768241089,-151.0,0.00033873,31]
[393528003,1762768241100,-151.0,0.00033873,31]
[393528004,1762768241110,-548.59,0.00033875,14]
[393528005,1762768241119,-13707.871837,0.00033877,2]
[393528006,1762768241130,-3563.6692801,0.00033877,2]
[393528007,1762768241140,-1167.3414848,0.00033877,2]
[393528008,1762768241149,-5441.3873867,0.00033877,2]
[393528009,1762768241160,-151.0,0.00033879,31]
[393528010,1762768241171,-600.0,0.00033879,30]
[393528011,1762768241182,-500.0,0.00033879,30]
[393528012,1762768241192,-264.16384973,0.00033879,30]
[393528013,1762768241202,-600.0,0.00033879,30]
[393528014,1762768241213,-500.0,0.00033879,30]
[393528015,1762768241223,-600.0,0.00033879,30]
[393528016,1762768241233,-500.0,0.00033879,30]
[393528017,1762768241242,-654.67685854,0.00033879,30]
[393528018,1762768241251,-626.5291094,0.00033879,30]
[393528019,1762768241263,-6888.0,0.00033879,30]
[393528020,1762768241273,-250.0,0.00033879,30]
[393528021,1762768241282,-500.0,0.00033879,30]
[393528022,1762768241298,-500.0,0.00033879,30]
[393528023,1762768241309,-250.0,0.00033879,30]
[393528024,1762768241319,-7142.856,0.00033879,30]
[393528025,1762768241328,-500.0,0.00033879,30]
[393528026,1762768241338,-500.0,0.00033879,30]
[393528027,1762768241347,-250.0,0.00033879,30]
[393528028,1762768241356,-7407.141672,0.00033879,30]
[393528029,1762768241368,-500.0,0.00033879,30]
[393528030,1762768241377,-500.0,0.00033879,30]
[393528031,1762768241386,-250.0,0.00033879,30]
[393528032,1762768241395,-7681.20591386,0.00033879,30]
[393528033,1762768241404,-414.0,0.00033879,30]
[393528034,1762768241414,-500.0,0.00033879,30]
[393528035,1762768241426,-500.0,0.00033879,30]
[393528036,1762768241435,-250.0,0.00033879,30]
[393528037,1762768241445,-7965.41053268,0.00033879,30]
[393528038,1762768241455,-429.318,0.00033879,30]
[393528039,1762768241464,-500.0,0.00033879,30]
[393528040,1762768241473,-500.0,0.00033879,30]
[393528041,1762768241482,-8260.13072239,0.00033879,30]
[393528042,1762768241492,-595.5717591,0.00033879,30]
[393528043,1762768241501,-445.202766,0.00033879,30]
[393528044,1762768241510,-500.0,0.00033879,30]
[393528045,1762768241519,-250.0,0.00033879,30]
[393528046,1762768241529,-250.0,0.00033879,30]
[393528047,1762768241539,-461.67526834,0.00033879,30]
[393528048,1762768241549,-500.0,0.00033879,30]
[393528049,1762768241558,-250.0,0.00033879,30]
[393528050,1762768241567,-250.0,0.00033879,30]
[393528051,1762768241576,-478.75725327,0.00033879,30]
[393528052,1762768241585,-591.85823244,0.00033879,30]
[393528053,1762768241595,-250.0,0.00033879,30]
[393528054,1762768241603,-250.0,0.00033879,30]
[393528055,1762768241613,-250.0,0.00033879,30]
[393528056,1762768241622,-521.03006383,0.00033879,30]
[393528057,1762768241631,-250.0,0.00033879,30]
[393528058,1762768241641,-267.17075637,0.00033879,30]
[393528059,1762768241650,-293.73514899,0.00033879,30]
[393528060,1762768241660,-250.0,0.00033879,30]
[393528061,1762768241669,-250.0,0.00033879,30]
[393528062,1762768241678,-151.0,0.00033879,30]
[393528063,1762768241688,-250.0,0.00033879,30]
[393528064,1762768241697,-151.0,0.00033879,30]
[393528065,1762768241707,-390.24699802,0.00033879,30]
[393528066,1762768241717,-151.0,0.00033879,30]
[393528067,1762768241726,-151.0,0.00033879,30]
[393528068,1762768241736,-151.0,0.00033879,30]
[393528069,1762768241745,-151.0,0.00033879,30]
[393528070,1762768241755,-151.0,0.00033879,30]
[393528071,1762768241764,-250.0,0.00033879,30]
[393528072,1762768241773,-151.0,0.00033879,30]
[393528073,1762768241783,-168.50074259,0.00033879,30]
[393528074,1762768241792,-151.0,0.00033879,31]
[393528075,1762768241803,-151.0,0.00033879,31]
[393528076,1762768241812,-151.0,0.00033879,31]
[393528077,1762768241822,-243.364912,0.00033879,31]
[393528078,1762768241831,-151.0,0.00033879,30]
[393528079,1762768241841,-151.0,0.00033879,30]
[393528080,1762768241850,-151.0,0.00033879,31]
[393528081,1762768241860,-151.0,0.00033879,31]
[393528082,1762768241869,-151.0,0.00033879,31]
[393528083,1762768241878,-240.504,0.00033879,31]
[393528084,1762768241888,-240.504,0.00033879,31]
[393528085,1762768241897,-240.504,0.00033879,31]
[393528086,1762768241907,-240.504,0.00033879,31]
[393528087,1762768241916,-151.0,0.00033879,31]
[393528088,1762768241927,-379.274472,0.00033879,31]
[393528089,1762768241936,-379.274472,0.00033879,31]
[393528090,1762768241946,-379.274472,0.00033879,31]
[393528091,1762768241956,-379.274472,0.00033879,31]
[393528092,1762768241965,-151.0,0.00033879,31]
[393528093,1762768241976,-218.481776,0.00033879,31]
[393528094,1762768241988,-151.0,0.00033879,31]
[393528095,1762768241999,-200.0,0.0003388,2]
[393528096,1762768242011,-151.0,0.0003388,31]
[393528097,1762768242021,-151.759532,0.0003388,31]
[393528098,1762768242031,-500.0,0.0003388,120]
[393528099,1762768242041,-169.49722,0.0003388,31]
[393528100,1762768242051,-151.0,0.0003388,31]
[393528101,1762768242060,-151.0,0.0003388,31]
[393528102,1762768242071,-151.0,0.0003388,30]
[393528103,1762768242081,-151.0,0.0003388,30]
[393528104,1762768242090,-151.0,0.0003388,31]
[393528105,1762768242100,-151.0,0.0003388,31]
[393528106,1762768242111,-151.0,0.0003388,31]
[393528107,1762768242120,-240.504,0.0003388,31]
[393528108,1762768242130,-240.504,0.0003388,31]
[393528109,1762768242140,-240.504,0.0003388,31]
[393528110,1762768242149,-240.504,0.0003388,31]
[393528111,1762768242159,-151.0,0.0003388,31]
[393528112,1762768242168,-379.274472,0.0003388,31]
[393528113,1762768242178,-379.274472,0.0003388,31]
[393528114,1762768242187,-379.274472,0.0003388,31]
[393528115,1762768242197,-379.274472,0.0003388,31]
[393528116,1762768242207,-151.0,0.0003388,31]
[393528117,1762768242215,-110720.55206715,0.0003388,2]
[393528118,1762768242225,-5000.0,0.0003389,30]
[393528119,1762768242234,-175.32100665,0.000339,6]
[393528120,1762768242243,-256.44959802,0.000339,2]
[393528122,1762768242253,-6321.8503641,0.00033941,3]
[393528123,1762768242268,-3274.22310221,0.00033941,3]
[393528124,1762768242280,-523.49738546,0.00033941,3]
[393528125,1762768242302,-151.0,0.0003388,31]
[393528126,1762768242311,-382.05,0.00033941,3]
[393528127,1762768242322,-6811.60415493,0.00033941,3]
[393528128,1762768242333,-150.0,0.00033945,2]
[393528129,1762768242342,-7376.39125458,0.00033951,2]
[393528130,1762768242354,-5320.6885895,0.00033951,2]
[393528131,1762768242365,-17313.2250067,0.0003396,3]
[393528132,1762768242374,-974.12236693,0.0003396,3]
[393528133,1762768242384,-974.12236693,0.00033963,3]
[393528134,1762768242393,-500.0,0.00033973,5]
[393528135,1762768242402,-500.0,0.00033973,5]
[393528136,1762768242411,-500.0,0.00033973,5]
[393528137,1762768242421,-150.0,0.00033973,5]
[393528138,1762768242430,-150.0,0.00033973,5]
[393528139,1762768242440,-7716.33396923,0.00033973,3]
[393528140,1762768242453,-9596.89103747,0.00033973,3]
[393528141,1762768242462,-17313.2250067,0.00033979,3]
[393528142,1762768242472,-974.12236693,0.00033979,3]
[393528143,1762768242481,-240.504,0.00033979,31]
[393528144,1762768242491,-240.504,0.00033979,31]
[393528145,1762768242500,-240.504,0.00033979,31]
[393528146,1762768242511,-240.504,0.00033979,31]
[393528147,1762768242520,-379.274472,0.00033979,31]
[393528148,1762768242529,-151.0,0.00033979,31]
[393528149,1762768242538,-379.274472,0.00033979,31]
[393528150,1762768242547,-379.274472,0.00033979,31]
[393528152,1762768242556,-379.274464,0.00033979,31]
[393528153,1762768242567,-3896.48946772,0.0003398,3]
[393528154,1762768242576,-500.0,0.00033988,120]
[393528155,1762768242585,-500.0,0.00033989,120]
[393528156,1762768242594,-151.0,0.00033989,31]
[393528157,1762768242604,-151.0,0.00033989,31]
[393528158,1762768242613,-151.0,0.00033989,30]
[393528159,1762768242623,-168.286764,0.00033989,30]
[393528160,1762768242634,-151.0,0.00033989,31]
[393528161,1762768242644,-151.0,0.00033989,31]
[393528162,1762768242653,-151.0,0.00033989,31]
[393528163,1762768242663,-776.12435415,0.0003399,2]
[393528164,1762768242674,-151.0,0.00033997,14]
[393528165,1762768242683,-200.0,0.00033998,10]
[393528166,1762768242694,-151.0,0.00033999,31]
[393528167,1762768242704,-152.763155,0.00033999,31]
[393528168,1762768242715,-150.97772186,0.00033999,20]
[393528169,1762768242729,-1000.0,0.00033999,7]
[393528170,1762768242738,-151.0,0.00033999,31]
[393528171,1762768242748,-25919.39665695,0.00033999,20]
[393528172,1762768242758,-104240.43465748,0.00034,2]
[393528173,1762768242770,-298352.54506458,0.00034,2]
[393528174,1762768242782,-297.7262798,0.00034,2]
[393528175,1762768242794,-682.60523184,0.00034,2]
[393528176,1762768242810,-150.0,0.00033808,7]
[393528177,1762768242819,-453780.15067239,0.00034,2]
[393528179,1762768242931,-150.0,0.00033808,7]
[393528180,1762768242941,-150.0,0.00033808,7]
[393528181,1762768242952,-3200.0,0.00034,2]
[393528182,1762768242963,-407.42164005,0.00034,2]
[393528183,1762768242975,-485.67618877,0.00034,2]
[393528184,1762768242986,-466.7936093,0.00034,2]
[393528185,1762768242997,-19898.53854247,0.00034,2]
[393528192,1762768245604,-151.0,0.00025735,2]
[393528193,1762768245614,-150.0,0.00030314,2]
[393528194,1762768245623,-125.55067345,0.00030314,2]
[393528195,1762768245658,-24.44932655,0.00030314,2]
[393528196,1762768245668,-150.0,0.00030451,2]
[393528197,1762768245678,-454.55067459,0.00033807,2]
[393528198,1762768245689,-794.30477733,0.00033807,2]
[393528199,1762768245712,-2158.22510503,0.00033807,2]
[393528200,1762768245723,-462.70739025,0.00033807,2]
[393528202,1762768246148,-3322.74316189,0.00033807,2]
[393528203,1762768246158,-4512.8618498,0.00034,2]
[393528204,1762768246169,-11994.97478811,0.00034,2]
[393528205,1762768246179,-11041.79196783,0.00034,2]
[393528206,1762768246191,-8071.5555672,0.00034,2]
[393528213,1762768620251,250.0,0.00017,2]
[393528224,1762769367135,-292.0233172,0.00024079,2]
[393528225,1762769367155,-151.0,0.00025559,2]
[393528226,1762769367174,-300.0,0.00026416,120]
[393528227,1762769367197,-250.0,0.0002647,2]
[393528228,1762769367216,-195.0,0.0002647,2]
[393528229,1762769367235,-151.0,0.00026729,2]
[393528230,1762769401942,151.0,0.00026845,2]
[393528246,1762769431666,-157.19373392,0.0003015,10]
[393528248,1762769431677,-153.0,0.00030297,2]
[393528249,1762769431688,-153.0,0.00030297,2]
[393528250,1762769431698,-153.0,0.00030297,2]
[393528251,1762769431708,-153.0,0.00030299,2]
[393528252,1762769431719,-153.0,0.00030317,2]